bitfinex/quotes_BTCUSD_20220304
["timestamp","ask_amount","ask_price","bid_price","bid_amount"]
[1646393371917,0.0011,41704.0,41701.0,0.24269137]
[1646393372096,0.020433,41703.0,41701.0,0.2187048]
[1646393372293,0.0011,41704.0,41702.0,0.02398657]
[1646393372493,0.0011,41704.0,41703.0,0.10491301]
[1646393372694,0.021533,41704.0,41703.0,0.10491301]
[1646393373095,0.0011,41704.0,41703.0,0.10491301]
[1646393374095,0.0011,41704.0,41703.0,0.31867297]
[1646393374295,0.0011,41704.0,41703.0,0.66867297]
[1646393375338,0.0364874,41708.0,41707.0,0.07508689]
[1646393375539,0.0364874,41708.0,41707.0,0.09906656]
[1646393375740,0.0569204,41708.0,41707.0,0.09906627]
[1646393375939,0.34595672,41715.0,41709.0,0.95]
[1646393376146,0.05,41721.0,41709.0,0.95]
[1646393376147,0.35165085,41726.0,41714.0,0.2]
[1646393376341,0.12668161,41726.0,41723.0,0.2]
[1646393376547,0.03994811,41736.0,41725.0,0.85]
[1646393376740,0.0021,41734.0,41733.0,0.06281912]
[1646393376939,0.0021,41734.0,41733.0,0.365765]
[1646393377139,0.0021,41734.0,41727.0,0.28671282]
[1646393377140,0.0021,41734.0,41728.0,0.365765]
[1646393377341,0.0021,41734.0,41728.0,0.25162995]
[1646393377542,0.0021,41734.0,41729.0,0.002]
[1646393377741,0.0021,41734.0,41731.0,0.365765]
[1646393378141,0.0021,41734.0,41731.0,0.415765]
[1646393378440,0.0021,41734.0,41731.0,0.05]
[1646393378640,0.0021,41734.0,41731.0,0.365765]
[1646393378886,0.0021,41734.0,41730.0,0.20751506]
[1646393379087,0.0021,41734.0,41731.0,0.365765]
[1646393379491,0.0021,41734.0,41732.0,0.365765]
[1646393379687,0.0021,41734.0,41731.0,0.365765]
[1646393379889,0.0021,41734.0,41730.0,0.20751506]
[1646393380887,0.0021,41734.0,41731.0,0.365765]
[1646393381488,0.0021,41734.0,41733.0,0.06411078]
[1646393381691,0.0021,41734.0,41733.0,0.365765]
[1646393382390,0.0021,41734.0,41731.0,0.365765]
[1646393382636,0.0021,41734.0,41732.0,0.06829514]
[1646393382836,0.0021,41734.0,41733.0,0.365765]
[1646393384538,0.0021,41734.0,41733.0,0.38972771]
[1646393386386,0.0021,41734.0,41733.0,0.43972771]
[1646393387287,0.0021,41734.0,41733.0,0.07396271]
[1646393387487,0.0021,41734.0,41733.0,0.02396271]
[1646393387887,0.0021,41734.0,41733.0,0.45685482]
[1646393388488,0.001,41735.0,41734.0,1.265765]
[1646393388687,0.001,41735.0,41734.0,0.43782743]
[1646393388887,0.001,41735.0,41734.0,0.73782743]
[1646393389490,0.001,41735.0,41734.0,0.43782743]
[1646393389689,0.001,41735.0,41734.0,0.38972743]
[1646393395588,0.001,41735.0,41734.0,0.02396243]
[1646393395990,0.001,41735.0,41734.0,0.38972743]
[1646393398741,0.0006,41738.0,41734.0,0.59541329]
[1646393398939,0.0006,41738.0,41734.0,0.57145086]
[1646393399239,0.0006,41738.0,41734.0,0.62145086]
[1646393399440,0.0006,41738.0,41734.0,0.25568586]
[1646393400040,0.0006,41738.0,41735.0,0.365765]
[1646393400441,0.0006,41738.0,41737.0,0.18148315]
[1646393400842,0.060543,41738.0,41733.0,0.013343]
[1646393401045,0.3,41737.0,41733.0,0.013343]
[1646393401302,0.35,41737.0,41733.0,0.013343]
[1646393401690,0.2724164,41736.0,41733.0,0.013343]
[1646393406044,0.3923144,41736.0,41733.0,0.013343]
[1646393406344,0.05,41735.0,41733.0,0.013343]
[1646393406645,0.3,41734.0,41733.0,0.00400303]
[1646393407847,0.109948,41735.0,41733.0,0.00400303]
[1646393408045,0.109948,41735.0,41734.0,0.10491301]
[1646393409093,0.109948,41735.0,41734.0,0.198348]
[1646393409292,0.109948,41735.0,41734.0,0.396696]
[1646393412294,0.05,41735.0,41734.0,0.396696]
[1646393412545,0.0006,41738.0,41734.0,0.396696]
[1646393412546,0.0506,41738.0,41734.0,0.396696]
[1646393413048,0.009598,41736.0,41734.0,0.396696]
[1646393413247,0.0006,41738.0,41735.0,0.16093818]
[1646393413451,0.0006,41738.0,41735.0,0.22979087]
[1646393414350,0.0006,41738.0,41736.0,0.43338466]
[1646393414551,0.0006,41738.0,41737.0,0.665765]
[1646393414753,0.0006,41738.0,41737.0,0.365765]
[1646393415350,0.0006,41738.0,41737.0,0.47067801]
[1646393416392,0.0006,41738.0,41737.0,0.36544868]
[1646393416792,0.0006,41738.0,41737.0,0.665562]
[1646393417193,0.0006,41738.0,41737.0,0.365562]
[1646393417491,0.0006,41738.0,41736.0,0.83008066]
[1646393417694,0.0006,41738.0,41737.0,0.415562]
[1646393418694,0.0006,41738.0,41737.0,0.62723231]
[1646393419797,0.0006,41738.0,41737.0,1.02392831]
[1646393420938,0.0006,41738.0,41737.0,0.812258]
[1646393421537,0.0006,41738.0,41737.0,0.446696]
[1646393421738,0.0032,41739.0,41738.0,0.36676199]
[1646393422140,0.0032,41739.0,41738.0,0.66676199]
[1646393424990,0.0032,41739.0,41738.0,0.86510999]
[1646393425190,0.0032,41739.0,41738.0,1.06345799]
[1646393425689,0.0032,41739.0,41738.0,1.168371]
[1646393427554,0.00912497,41743.0,41739.0,0.365562]
[1646393427758,0.00912497,41743.0,41739.0,0.415562]
[1646393428157,0.00912497,41743.0,41742.0,0.63912547]
[1646393428357,0.00912497,41743.0,41742.0,0.2022059]
[1646393428757,0.00912497,41743.0,41742.0,0.5677679]
[1646393429758,0.00912497,41743.0,41742.0,0.2022059]
[1646393429959,0.00912497,41743.0,41739.0,0.002]
[1646393430359,0.00912497,41743.0,41741.0,0.198348]
[1646393430560,0.00912497,41743.0,41741.0,0.396696]
[1646393435447,0.00912497,41743.0,41739.0,0.3]
[1646393435647,0.00912497,41743.0,41741.0,0.198348]
[1646393435850,0.00912497,41743.0,41741.0,0.396696]
[1646393437851,0.00912497,41743.0,41741.0,0.39620285]
[1646393438052,0.00232497,41744.0,41741.0,0.39620285]
[1646393440696,0.00232497,41744.0,41741.0,0.198348]
[1646393440895,0.00232497,41744.0,41738.0,0.40466344]
[1646393441097,0.00232497,41744.0,41742.0,0.39620285]
[1646393444252,0.00232497,41744.0,41743.0,0.365562]
[1646393444449,0.00232497,41744.0,41742.0,0.39620285]
[1646393445152,0.03508699,41743.0,41742.0,0.39620285]
[1646393446695,0.00232497,41744.0,41742.0,0.39620285]
[1646393446998,0.01438332,41743.0,41742.0,0.198348]
[1646393447195,0.01438332,41743.0,41738.0,0.19171289]
[1646393447396,0.00232497,41744.0,41740.0,0.198348]
[1646393450745,0.00232497,41744.0,41741.0,0.365562]
[1646393451146,0.00232497,41744.0,41742.0,0.27680458]
[1646393451350,0.00232497,41744.0,41740.0,0.198348]
[1646393452349,0.00232497,41744.0,41742.0,0.4101363]
[1646393452749,0.00232497,41744.0,41743.0,0.198348]
[1646393454592,0.00232497,41744.0,41743.0,0.118116]
[1646393455796,0.00232497,41744.0,41742.0,0.19785485]
[1646393455797,1.4,41743.0,41742.0,0.19785485]
[1646393456295,0.20232497,41744.0,41742.0,0.15725317]
[1646393456895,0.05232497,41744.0,41742.0,0.15725317]
[1646393457297,0.03899218,41744.0,41742.0,0.15725317]
[1646393457545,0.059932,41743.0,41738.0,0.00119999]
[1646393458747,0.06953,41743.0,41738.0,0.00119999]
[1646393458949,0.38899218,41744.0,41738.0,0.00119999]
[1646393461296,0.27378497,41741.0,41738.0,0.00119999]
[1646393461798,0.05,41740.0,41738.0,0.00119999]
[1646393461999,0.38899218,41744.0,41738.0,0.00119999]
[1646393462801,0.38899218,41744.0,41741.0,0.15725317]
[1646393464499,0.08899218,41744.0,41741.0,0.15725317]
[1646393464699,0.0021,41745.0,41742.0,0.35820841]
[1646393464900,0.0021,41745.0,41742.0,0.72377041]
[1646393465153,0.0021,41745.0,41744.0,0.365562]
[1646393465349,0.0032,41746.0,41745.0,1.419762]
[1646393465749,0.1354,41757.0,41746.0,1.2]
[1646393465952,0.0605,41759.0,41755.0,0.06310154]
[1646393466151,0.0105,41759.0,41756.0,0.3]
[1646393466351,0.0105,41759.0,41757.0,0.21379046]
[1646393466748,0.0105,41759.0,41758.0,0.18316303]
[1646393467149,0.0105,41759.0,41758.0,0.37056752]
[1646393468154,0.0105,41759.0,41758.0,0.82782069]
[1646393468915,0.0105,41759.0,41758.0,0.6404162]
[1646393469113,0.0105,41759.0,41758.0,0.3404162]
[1646393469314,0.0105,41759.0,41758.0,0.15725317]
[1646393470112,0.0105,41759.0,41758.0,0.12285498]
[1646393471913,0.0105,41768.0,41760.0,1.4]
[1646393472115,0.05,41771.0,41763.0,0.2]
[1646393472318,0.0011,41773.0,41764.0,0.865562]
[1646393472551,0.0011,41773.0,41765.0,0.2]
[1646393472751,0.0011,41773.0,41769.0,0.06138819]
[1646393472955,0.0011,41773.0,41771.0,0.21775065]
[1646393473150,0.0011,41773.0,41772.0,0.365562]
[1646393473351,0.0011,41773.0,41772.0,0.48841698]
[1646393473950,0.01069,41773.0,41772.0,0.48841698]
[1646393474355,0.0011,41773.0,41772.0,0.48841698]
[1646393474655,0.0011,41773.0,41772.0,0.42285498]
[1646393475053,0.0011,41773.0,41772.0,0.12285498]
[1646393475252,0.0043,41778.0,41772.0,0.12285498]
[1646393475253,0.00023265,41778.0,41772.0,0.12285498]
[1646393475454,0.00079265,41780.0,41772.0,0.12285498]
[1646393476703,0.00079265,41780.0,41772.0,0.42285498]
[1646393477503,0.00079265,41780.0,41772.0,0.4804678]
[1646393477704,0.00079265,41780.0,41778.0,0.19067538]
[1646393477903,0.00079265,41780.0,41779.0,0.22344599]
[1646393478106,0.00079265,41780.0,41772.0,0.42285498]
[1646393478504,0.00079265,41780.0,41772.0,0.3]
[1646393478704,0.00079265,41780.0,41779.0,0.12285498]
[1646393480348,0.00079265,41780.0,41779.0,0.31760158]
[1646393480950,0.00079265,41780.0,41779.0,0.49087592]
[1646393482154,0.0021,41781.0,41780.0,1.765562]
[1646393482451,0.0021,41781.0,41780.0,0.413662]
[1646393482951,0.0021,41781.0,41780.0,0.713662]
[1646393483151,0.0021,41781.0,41780.0,0.413662]
[1646393483999,0.0021,41781.0,41780.0,0.5604493]
[1646393484798,0.0021,41781.0,41780.0,0.1948873]
[1646393485300,0.0021,41781.0,41780.0,0.0604493]
[1646393485499,0.0021,41781.0,41770.0,0.9667]
[1646393485698,0.0021,41781.0,41771.0,0.71812]
[1646393485900,0.305516,41780.0,41774.0,0.002]
[1646393486100,0.0021,41781.0,41774.0,0.002]
[1646393486300,0.0021,41781.0,41776.0,0.16033236]
[1646393486600,0.0021,41781.0,41776.0,0.37244311]
[1646393486801,0.0021,41781.0,41774.0,0.002]
[1646393487000,0.0021,41781.0,41771.0,0.71812]
[1646393487845,0.0021,41781.0,41773.0,0.35049981]
[1646393488046,0.0021,41781.0,41773.0,0.16939645]
[1646393488246,0.05,41782.0,41773.0,0.16939645]
[1646393488451,0.64681313,41786.0,41772.0,0.28504765]
[1646393488646,0.64681313,41786.0,41771.0,0.71812]
[1646393488647,0.15,41780.0,41771.0,0.71812]
[1646393488849,0.02396,41784.0,41771.0,0.71812]
[1646393488850,0.15,41776.0,41771.0,0.71812]
[1646393489046,0.653616,41775.0,41771.0,0.71812]
[1646393489247,0.653616,41775.0,41756.0,0.16946]
[1646393489446,0.17420312,41774.0,41760.0,0.21477881]
[1646393489646,0.305516,41773.0,41764.0,0.28923922]
[1646393489848,0.3,41772.0,41762.0,0.0609757]
[1646393490449,0.0481,41775.0,41762.0,0.0609757]
[1646393491335,0.0481,41775.0,41763.0,0.21192043]
[1646393491506,0.305516,41774.0,41763.0,0.36891642]
[1646393491704,0.3,41773.0,41763.0,0.36891642]
[1646393491907,0.3,41773.0,41767.0,0.17871778]
[1646393492104,0.0481,41775.0,41767.0,0.17871778]
[1646393492306,0.305516,41774.0,41767.0,0.17871778]
[1646393492505,0.305516,41772.0,41767.0,0.17871778]
[1646393492906,0.300516,41772.0,41767.0,0.17871778]
[1646393493610,0.300516,41772.0,41756.0,0.3455]
[1646393493806,0.3,41773.0,41756.0,0.1455]
[1646393494008,0.3,41773.0,41764.0,0.002]
[1646393494205,0.300502,41772.0,41764.0,0.002]
[1646393494405,0.360404,41772.0,41764.0,0.002]
[1646393494607,0.300502,41771.0,41764.0,0.002]
[1646393494806,0.3,41770.0,41764.0,0.002]
[1646393495053,0.02396,41768.0,41756.0,0.1455]
[1646393495254,0.02396,41768.0,41753.0,2.54801866]
[1646393495654,0.0481,41769.0,41753.0,2.54801866]
[1646393495855,0.04762,41769.0,41759.0,0.1613193]
[1646393496055,0.04762,41769.0,41759.0,0.41690205]
[1646393496260,0.04762,41769.0,41759.0,0.1613193]
[1646393496457,0.300502,41768.0,41750.0,0.024]
[1646393496661,0.708513,41767.0,41750.0,0.024]
[1646393496959,1.176302,41761.0,41750.0,0.024]
[1646393497159,1.176302,41761.0,41750.0,0.02]
[1646393497160,0.2355391,41754.0,41750.0,0.02]
[1646393497357,0.3481,41753.0,41750.0,0.02]
[1646393497556,0.300502,41752.0,41750.0,0.02]
[1646393497959,0.300502,41751.0,41750.0,0.02]
[1646393498158,0.300502,41751.0,41745.0,0.0042]
[1646393499398,0.300502,41749.0,41745.0,0.0042]
[1646393500399,0.3,41750.0,41745.0,0.0042]
[1646393501200,0.300502,41749.0,41745.0,0.0042]
[1646393502300,0.348602,41749.0,41745.0,0.0042]
[1646393503551,0.059938,41748.0,41745.0,0.0042]
[1646393503752,0.300502,41747.0,41745.0,0.0042]
[1646393503955,0.600502,41746.0,41745.0,0.0042]
[1646393504150,0.12212691,41746.0,41745.0,0.0042]
[1646393504351,0.17212691,41746.0,41745.0,0.0042]
[1646393505752,0.47212691,41746.0,41745.0,0.0042]
[1646393507195,0.72114331,41746.0,41745.0,0.0042]
[1646393507397,0.47212691,41746.0,41745.0,0.0042]
[1646393508699,0.69359989,41746.0,41745.0,0.0042]
[1646393508899,1.4,41745.0,41738.0,0.00119999]
[1646393509101,0.18764727,41740.0,41738.0,0.00119999]
[1646393509299,0.374008,41739.0,41738.0,0.00119999]
[1646393509701,0.563198,41739.0,41738.0,0.00119999]
[1646393509906,0.1487,41743.0,41738.0,0.00119999]
[1646393509907,0.203828,41748.0,41739.0,0.4]
[1646393510175,0.05,41753.0,41747.0,0.08779874]
[1646393510376,0.05006613,41758.0,41749.0,0.365505]
[1646393510575,0.03639063,41759.0,41747.0,0.08779874]
[1646393510777,0.03639063,41759.0,41748.0,0.3]
[1646393510975,0.24945646,41759.0,41747.0,0.08779874]
[1646393511174,0.24945646,41759.0,41743.0,0.1482]
[1646393511175,0.21306583,41759.0,41743.0,0.1482]
[1646393511378,0.32526709,41759.0,41743.0,0.1482]
[1646393511577,0.1,41758.0,41741.0,0.3]
[1646393511782,0.059927,41756.0,41745.0,0.6016]
[1646393511976,0.059927,41756.0,41752.0,0.26779285]
[1646393512179,0.025,41758.0,41753.0,0.0481]
[1646393512375,0.05,41759.0,41754.0,0.0481]
[1646393512577,0.16220126,41762.0,41754.0,0.0481]
[1646393513076,0.009596,41759.0,41754.0,0.0481]
[1646393513278,0.1,41761.0,41754.0,0.0481]
[1646393513476,0.2009042,41758.0,41754.0,0.0481]
[1646393513912,0.2509042,41758.0,41754.0,0.0481]
[1646393518564,0.05,41758.0,41754.0,0.0481]
[1646393518767,0.175,41759.0,41754.0,0.0481]
[1646393518966,0.175,41759.0,41746.0,0.3]
[1646393519167,0.175,41759.0,41751.0,0.25706476]
[1646393519470,0.075,41759.0,41751.0,0.25706476]
[1646393520267,0.075,41759.0,41751.0,0.30516476]
[1646393520869,0.075,41759.0,41751.0,0.0481]
[1646393521173,0.21024895,41755.0,41751.0,0.0481]
[1646393521416,0.175,41759.0,41751.0,0.0481]
[1646393521616,0.075,41759.0,41751.0,0.0481]
[1646393521815,0.075,41759.0,41751.0,0.31303312]
[1646393522417,0.16834964,41758.0,41751.0,0.31303312]
[1646393522619,0.075,41759.0,41751.0,0.31303312]
[1646393523819,0.20105088,41758.0,41751.0,0.31303312]
[1646393525761,0.025,41759.0,41751.0,0.31303312]
[1646393525963,0.025,41759.0,41752.0,0.3]
[1646393526162,0.03506442,41760.0,41753.0,0.0481]
[1646393526362,0.03506442,41760.0,41754.0,0.365505]
[1646393526660,0.03506442,41760.0,41755.0,0.3481]
[1646393526860,0.03506442,41760.0,41756.0,0.2212992]
[1646393529206,0.03506442,41760.0,41756.0,0.0481]
[1646393529408,0.009593,41761.0,41756.0,0.0481]
[1646393529612,0.48696701,41764.0,41756.0,0.0481]
[1646393530712,0.17136008,41762.0,41756.0,0.0481]
[1646393532550,0.48696701,41764.0,41756.0,0.0481]
[1646393532750,0.49656101,41764.0,41756.0,0.0481]
[1646393532951,0.48696701,41764.0,41756.0,0.0481]
[1646393533550,0.16396024,41763.0,41756.0,0.0481]
[1646393533954,0.48696701,41764.0,41756.0,0.0481]
[1646393534751,0.17032536,41763.0,41756.0,0.0481]
[1646393535451,0.47032536,41763.0,41756.0,0.0481]
[1646393535751,0.19832151,41761.0,41756.0,0.0481]
[1646393535952,0.47032536,41763.0,41756.0,0.0481]
[1646393536152,0.17032536,41763.0,41756.0,0.0481]
[1646393537197,0.36666787,41763.0,41756.0,0.0481]
[1646393537398,0.66666787,41763.0,41756.0,0.0481]
[1646393537601,0.36666787,41763.0,41756.0,0.0481]
[1646393537998,0.66666787,41763.0,41756.0,0.0481]
[1646393538402,0.04793979,41759.0,41748.0,0.14]
[1646393538603,0.04794553,41755.0,41748.0,0.14]
[1646393538799,0.04794553,41751.0,41743.0,0.08779874]
[1646393539001,0.3,41757.0,41743.0,0.08779874]
[1646393539200,0.3,41757.0,41744.0,0.24443772]
[1646393539201,0.15990989,41752.0,41744.0,0.24443772]
[1646393539401,0.15990989,41752.0,41742.0,0.08779874]
[1646393539601,0.3,41753.0,41742.0,0.08779874]
[1646393539800,0.3,41753.0,41745.0,0.08779874]
[1646393540054,0.119867,41754.0,41742.0,0.08686796]
[1646393540259,0.3,41753.0,41743.0,0.08686796]
[1646393540455,0.169867,41754.0,41742.0,0.08686796]
[1646393540657,0.26095612,41752.0,41739.0,0.33699679]
[1646393540859,0.26095612,41752.0,41739.0,0.1474]
[1646393541261,0.26095612,41752.0,41739.0,0.23426796]
[1646393541462,0.05994,41749.0,41739.0,0.1474]
[1646393541661,0.33888316,41748.0,41739.0,0.1474]
[1646393541859,0.16049377,41745.0,41734.0,0.5557728]
[1646393542260,0.16081057,41746.0,41734.0,0.5557728]
[1646393542861,0.059943,41748.0,41741.0,0.28944096]
[1646393543058,0.059943,41748.0,41735.0,0.1514]
[1646393543359,0.10994,41749.0,41739.0,0.08686796]
[1646393544206,0.05,41751.0,41739.0,0.08686796]
[1646393544405,0.20592115,41748.0,41739.0,0.08686796]
[1646393544606,0.25592115,41748.0,41735.0,0.1544]
[1646393544806,0.25592115,41748.0,41735.0,0.24126796]
[1646393545007,0.25592115,41748.0,41735.0,0.1544]
[1646393545209,0.25592115,41748.0,41739.0,0.08686796]
[1646393546208,0.25592115,41748.0,41741.0,0.20782567]
[1646393546407,0.25592115,41748.0,41739.0,0.08686796]
[1646393547856,0.25592115,41748.0,41737.0,0.08686796]
[1646393548253,0.25592115,41748.0,41735.0,0.1544]
[1646393548454,0.25592115,41748.0,41740.0,0.2676154]
[1646393549054,0.25592115,41748.0,41741.0,0.15744117]
[1646393549353,0.3,41747.0,41741.0,0.15744117]
[1646393549554,0.3,41751.0,41741.0,0.15744117]
[1646393550154,0.3,41751.0,41743.0,0.08686796]
[1646393550353,2.41428916,41751.0,41743.0,0.08686796]
[1646393550753,2.46428916,41751.0,41743.0,0.08686796]
[1646393550952,2.46428916,41751.0,41741.0,0.15744117]
[1646393551154,2.46428916,41751.0,41743.0,0.08686796]
[1646393551908,2.46428916,41751.0,41741.0,0.15744117]
[1646393552107,2.41428916,41751.0,41743.0,0.08686796]
[1646393552710,2.41428916,41751.0,41741.0,0.15744117]
[1646393552909,2.42388516,41751.0,41741.0,0.15744117]
[1646393553111,2.47388516,41751.0,41741.0,0.15744117]
[1646393553309,2.46428916,41751.0,41741.0,0.15744117]
[1646393555378,2.46428916,41751.0,41740.0,0.08686796]
[1646393555575,2.52422616,41751.0,41735.0,0.23826796]
[1646393556074,0.13336805,41750.0,41735.0,0.24026796]
[1646393556476,0.13336805,41750.0,41737.0,0.21477034]
[1646393556881,0.059942,41747.0,41737.0,0.21477034]
[1646393557579,0.059942,41747.0,41737.0,0.45820778]
[1646393557980,0.059942,41747.0,41737.0,0.54507574]
[1646393558383,0.059942,41747.0,41737.0,0.45820778]
[1646393558809,0.23971218,41749.0,41737.0,0.45820778]
[1646393558810,0.075,41749.0,41737.0,0.45820778]
[1646393559008,0.15443157,41748.0,41737.0,0.45820778]
[1646393560009,0.075,41749.0,41737.0,0.45820778]
[1646393560209,0.075,41749.0,41738.0,0.3]
[1646393561209,0.23690214,41746.0,41738.0,0.3]
[1646393561712,0.05,41746.0,41738.0,0.3]
[1646393561912,0.075,41749.0,41738.0,0.3]
[1646393562114,0.025,41749.0,41738.0,0.3]
[1646393562313,0.025,41749.0,41746.0,0.0237]
[1646393562964,2.11428916,41751.0,41746.0,0.0237]
[1646393563164,2.11428916,41751.0,41746.0,0.11056796]
[1646393563766,2.11428916,41751.0,41749.0,0.25422886]
[1646393563966,1.58783593,41751.0,41750.0,0.89590878]
[1646393564767,1.58783593,41751.0,41750.0,0.94400878]
[1646393565167,1.58783593,41751.0,41750.0,1.14400878]
[1646393565366,0.24524799,41754.0,41750.0,1.14400878]
[1646393565566,0.24524799,41754.0,41753.0,0.365505]
[1646393565866,0.24524799,41754.0,41753.0,0.713605]
[1646393566510,0.24524799,41754.0,41753.0,0.80047296]
[1646393566711,0.24092252,41755.0,41753.0,0.713605]
[1646393567110,0.24092252,41755.0,41753.0,0.413605]
[1646393568211,0.24092252,41755.0,41754.0,0.38686796]
[1646393568412,0.24092252,41755.0,41754.0,0.80047296]
[1646393568614,0.24092252,41755.0,41754.0,1.03145365]
[1646393568817,0.25051552,41755.0,41754.0,1.74994365]
[1646393569212,0.25099615,41761.0,41754.0,1.77390365]
[1646393569413,0.25099615,41761.0,41760.0,0.11082796]
[1646393569613,0.25099615,41761.0,41760.0,1.54282296]
[1646393569811,0.25099615,41761.0,41760.0,1.77380365]
[1646393569812,0.18519615,41761.0,41760.0,1.77380365]
[1646393570260,0.29903704,41776.0,41763.0,0.2]
[1646393570461,0.29903704,41776.0,41774.0,0.365505]
[1646393570462,0.24903704,41776.0,41774.0,0.365505]
[1646393570659,0.24903704,41776.0,41773.0,0.08686796]
[1646393570860,0.24903704,41776.0,41774.0,0.413605]
[1646393571362,0.24903704,41776.0,41774.0,0.66291689]
[1646393571561,0.24903704,41776.0,41775.0,0.2139481]
[1646393571760,0.29903704,41776.0,41775.0,0.5794531]
[1646393571960,0.05,41776.0,41775.0,0.5794531]
[1646393572365,2.55127477,41779.0,41775.0,0.2139481]
[1646393572366,2.60127477,41779.0,41775.0,0.2139481]
[1646393572562,2.60127477,41779.0,41777.0,0.365505]
[1646393572761,2.60127477,41779.0,41778.0,0.0481]
[1646393572762,2.55127477,41779.0,41778.0,0.0481]
[1646393572961,2.55127477,41779.0,41778.0,0.413605]
[1646393573162,0.009589,41780.0,41778.0,0.413605]
[1646393573812,0.009589,41780.0,41779.0,0.365505]
[1646393574408,0.121876,41787.0,41778.0,0.0481]
[1646393574808,0.05,41786.0,41778.0,0.0481]
[1646393575109,0.25090932,41786.0,41778.0,0.0481]
[1646393576508,0.05,41786.0,41778.0,0.0481]
[1646393576713,0.059588,41786.0,41778.0,0.0481]
[1646393577007,0.05,41786.0,41778.0,0.0481]
[1646393577408,0.15785029,41785.0,41778.0,0.0481]
[1646393577655,0.05,41786.0,41778.0,0.0481]
[1646393577856,0.0021,41787.0,41778.0,0.0481]
[1646393579458,0.0021,41787.0,41783.0,0.365505]
[1646393579658,0.0021,41787.0,41784.0,0.3481]
[1646393579858,0.0021,41787.0,41785.0,0.0481]
[1646393580660,0.19350812,41787.0,41785.0,0.0481]
[1646393580861,0.011687,41787.0,41785.0,0.0481]
[1646393582311,0.0021,41787.0,41785.0,0.0481]
[1646393584715,0.011687,41787.0,41785.0,0.0481]
[1646393585562,0.011687,41787.0,41778.0,0.06791622]
[1646393585763,0.059882,41783.0,41778.0,0.0481]
[1646393585966,0.059882,41783.0,41773.0,0.142]
[1646393585967,0.04790936,41779.0,41773.0,0.142]
[1646393586164,0.45980598,41782.0,41767.0,0.9268]
[1646393586362,0.45980598,41782.0,41773.0,0.06791622]
[1646393586563,0.16414324,41780.0,41773.0,0.06791622]
[1646393586863,0.21414324,41780.0,41773.0,0.06791622]
[1646393587066,0.33392824,41780.0,41771.0,0.23964989]
[1646393587263,0.27403424,41780.0,41769.0,0.16537448]
[1646393587463,0.359893,41779.0,41769.0,0.16537448]
[1646393588464,0.359893,41779.0,41771.0,0.21607966]
[1646393588664,0.28362324,41780.0,41772.0,0.06791622]
[1646393588933,0.27403424,41780.0,41772.0,0.06791622]
[1646393589134,0.109891,41780.0,41772.0,0.06791622]
[1646393589433,0.104891,41780.0,41772.0,0.06791622]
[1646393589637,0.02506,41788.0,41778.0,0.06791622]
[1646393589638,0.0011,41788.0,41778.0,0.06791622]
[1646393590034,0.0011,41788.0,41782.0,0.16851794]
[1646393590636,0.0011,41788.0,41778.0,0.36791622]
[1646393591036,0.0011,41788.0,41778.0,0.06791622]
[1646393591635,0.20556982,41786.0,41783.0,0.26675989]
[1646393591835,0.0011,41788.0,41783.0,0.26675989]
[1646393592037,0.05,41786.0,41783.0,0.26675989]
[1646393592239,0.0011,41788.0,41783.0,0.26675989]
[1646393592437,0.011688,41787.0,41783.0,0.26675989]
[1646393592665,0.011688,41787.0,41784.0,0.365505]
[1646393592865,0.011688,41787.0,41783.0,0.26675989]
[1646393593364,0.011688,41787.0,41786.0,0.15879357]
[1646393593765,0.0021,41787.0,41786.0,0.15879357]
[1646393594466,0.0021,41787.0,41784.0,0.3]
[1646393595066,0.0021,41787.0,41783.0,0.26675989]
[1646393596510,0.011686,41787.0,41783.0,0.26675989]
[1646393596710,0.0021,41787.0,41783.0,0.26675989]
[1646393600259,0.011687,41787.0,41783.0,0.26675989]
[1646393600660,0.0021,41787.0,41783.0,0.26675989]
[1646393602360,0.0021,41787.0,41781.0,0.25737126]
[1646393603660,0.0021,41787.0,41783.0,0.20721763]
[1646393603942,0.01087142,41789.0,41783.0,0.20721763]
[1646393604734,0.11307,41792.0,41783.0,0.20721763]
[1646393604735,0.09406487,41792.0,41783.0,0.20721763]
[1646393605535,0.09406487,41792.0,41784.0,0.3]
[1646393605736,0.09406487,41792.0,41788.0,0.19246061]
[1646393605936,0.05,41792.0,41788.0,0.38038024]
[1646393606137,0.0042,41793.0,41788.0,0.19246061]
[1646393608164,0.013786,41793.0,41788.0,0.19246061]
[1646393608568,0.0042,41793.0,41788.0,0.19246061]
[1646393612612,0.0042,41793.0,41784.0,0.36791622]
[1646393612814,0.0042,41793.0,41784.0,0.06791622]
[1646393613414,0.0024,41794.0,41784.0,0.36791622]
[1646393613614,0.0024,41794.0,41786.0,0.197258]
[1646393613815,0.15988843,41793.0,41786.0,0.197258]
[1646393614018,0.15988843,41793.0,41784.0,0.06791622]
[1646393614216,0.0024,41794.0,41784.0,0.06791622]
[1646393614418,0.0024,41794.0,41784.0,0.36791622]
[1646393615260,0.21764489,41786.0,41781.0,0.005]
[1646393615463,0.20708589,41788.0,41781.0,0.005]
[1646393615661,0.05,41786.0,41778.0,0.36791622]
[1646393616058,0.25708589,41788.0,41778.0,0.36791622]
[1646393616259,0.25708589,41788.0,41781.0,0.2472507]
[1646393617559,0.31695989,41788.0,41778.0,0.36791622]
[1646393617759,0.31695989,41788.0,41778.0,0.06791622]
[1646393618161,0.31695989,41788.0,41778.0,0.06891622]
[1646393618560,0.31695989,41788.0,41779.0,0.27725736]
[1646393619613,0.109874,41788.0,41779.0,0.27725736]
[1646393619814,0.05,41787.0,41779.0,0.27725736]
[1646393620414,0.069461,41788.0,41779.0,0.27725736]
[1646393620614,0.26103042,41788.0,41779.0,0.27725736]
[1646393620816,0.26103042,41788.0,41780.0,0.3]
[1646393620817,0.009587,41788.0,41780.0,0.3]
[1646393621715,0.009587,41788.0,41780.0,0.4621449]
[1646393622014,0.009587,41788.0,41780.0,0.3]
[1646393622215,0.009587,41788.0,41780.0,0.36708342]
[1646393622414,0.009587,41788.0,41780.0,0.06708342]
[1646393622868,0.009587,41788.0,41784.0,0.18655872]